bitfinex/quotes_BTCUSD_20250825
["timestamp","ask_amount","ask_price","bid_price","bid_amount"]
[1756109573372,0.00575424,111700.0,111690.0,0.16808]
[1756109573709,0.00175424,111700.0,111690.0,0.16808]
[1756109573916,0.00575424,111700.0,111690.0,0.16808]
[1756109574338,0.01453428,111700.0,111690.0,0.16808]
[1756109574546,0.00575424,111700.0,111690.0,0.17305]
[1756109576338,0.00575424,111700.0,111690.0,0.16808]
[1756109576746,0.00414424,111700.0,111690.0,0.17305]
[1756109577411,0.00575424,111700.0,111690.0,0.17305]
[1756109577610,0.01472839,111700.0,111690.0,0.17305]
[1756109577837,0.00414424,111700.0,111690.0,0.17305]
[1756109578039,0.00414424,111700.0,111690.0,0.17528833]
[1756109579230,0.00414424,111700.0,111690.0,0.2796221]
[1756109579456,0.00414424,111700.0,111690.0,0.30429177]
[1756109579669,0.030037,111760.0,111710.0,0.01744902]
[1756109579927,0.11256306,111760.0,111720.0,0.33113021]
[1756109580166,0.11549306,111760.0,111730.0,0.00520753]
[1756109580376,0.11549306,111760.0,111740.0,0.16796]
[1756109580588,0.00199,111750.0,111740.0,0.16796]
[1756109580795,0.01390224,111750.0,111740.0,0.16796]
[1756109581482,0.01097224,111750.0,111740.0,0.16996]
[1756109581908,0.01097224,111750.0,111740.0,0.16796]
[1756109583359,0.002,111750.0,111740.0,0.17293]
[1756109583763,0.002,111750.0,111740.0,0.25981475]
[1756109585004,0.00068099,111760.0,111740.0,0.28626477]
[1756109585210,0.00068099,111760.0,111750.0,0.16316901]
[1756109585420,0.00068099,111760.0,111750.0,0.16293188]
[1756109585619,0.00068099,111760.0,111750.0,0.16069475]
[1756109585828,0.00068099,111760.0,111750.0,0.32857475]
[1756109587239,0.00168099,111760.0,111750.0,0.32857475]
[1756109587450,0.00168099,111760.0,111750.0,1.18262608]
[1756109587658,0.00168099,111760.0,111750.0,0.34602377]
[1756109587873,0.00168099,111760.0,111750.0,0.17814377]
[1756109588081,0.00168099,111760.0,111750.0,0.16069475]
[1756109588299,0.00168099,111760.0,111750.0,0.32849475]
[1756109588513,0.00068099,111760.0,111750.0,0.32849475]
[1756109588913,0.00267099,111760.0,111750.0,0.15772475]
[1756109589129,0.00068099,111760.0,111750.0,0.32849475]
[1756109589551,0.00279099,111760.0,111750.0,0.15784475]
[1756109589753,0.00279099,111760.0,111750.0,0.23664]
[1756109589959,0.00379099,111760.0,111750.0,0.06884]
[1756109590166,0.00379099,111760.0,111750.0,0.23664]
[1756109590786,0.00168099,111760.0,111750.0,0.24179]
[1756109590982,0.00379099,111760.0,111750.0,0.23876]
[1756109591616,0.00696099,111760.0,111750.0,0.2366]
[1756109592058,0.00696099,111760.0,111750.0,0.16776]
[1756109592723,0.00596099,111760.0,111750.0,0.16776]
[1756109592952,0.00596099,111760.0,111740.0,0.06884]
[1756109593164,0.33416099,111770.0,111750.0,0.16772]
[1756109593390,0.08688475,111760.0,111730.0,0.07187]
[1756109593642,0.08688475,111760.0,111730.0,0.06884]
[1756109593903,0.08688475,111760.0,111730.0,0.23656]
[1756109594126,0.08888475,111760.0,111730.0,0.23959]
[1756109594350,0.08688475,111760.0,111740.0,0.00303]
[1756109594804,0.09088475,111760.0,111740.0,0.00303]
[1756109595020,0.08688475,111760.0,111740.0,0.00303]
[1756109595263,0.34,111750.0,111730.0,0.23959]
[1756109595889,0.08688475,111760.0,111740.0,0.00515]
[1756109596309,0.0001442,111770.0,111740.0,0.00515]
[1756109596536,0.0001442,111770.0,111750.0,0.17071]
[1756109596537,0.004,111760.0,111750.0,0.17071]
[1756109596746,0.08702895,111770.0,111750.0,0.17283]
[1756109596957,0.10364086,111770.0,111750.0,0.17283]
[1756109597159,0.004,111760.0,111750.0,0.17283]
[1756109597366,0.0001442,111770.0,111760.0,0.00303]
[1756109597579,0.01675799,111770.0,111760.0,0.00303]
[1756109597787,0.01975799,111770.0,111760.0,0.00303]
[1756109597994,0.01675799,111770.0,111750.0,0.17071]
[1756109598209,0.01975799,111770.0,111750.0,0.17071]
[1756109599677,0.01975799,111770.0,111760.0,0.00212]
[1756109600099,0.01975799,111770.0,111750.0,0.17071]
[1756109600515,0.01675799,111770.0,111750.0,0.17071]
[1756109600971,0.01875799,111770.0,111750.0,0.00303]
[1756109601190,0.01675799,111770.0,111750.0,0.00303]
[1756109601415,0.01875799,111770.0,111750.0,0.17063]
[1756109601839,0.01875799,111770.0,111750.0,0.1676]
[1756109602054,0.10564274,111770.0,111750.0,0.1676]
[1756109602237,0.10564274,111770.0,111740.0,0.00303]
[1756109602503,0.11395554,111770.0,111740.0,0.17063]
[1756109602775,0.11395554,111770.0,111740.0,0.1676]
[1756109602997,0.08688475,111760.0,111740.0,0.17063]
[1756109605339,0.08658539,111760.0,111740.0,0.17063]
[1756109606258,0.10322675,111760.0,111740.0,0.17063]
[1756109606484,0.1115478,111760.0,111740.0,0.17063]
[1756109608883,0.1115478,111760.0,111740.0,0.00303]
[1756109609121,0.1115478,111760.0,111740.0,0.17055]
[1756109610850,0.1115898,111760.0,111740.0,0.17055]
[1756109611761,0.1115898,111760.0,111750.0,0.00515]
[1756109612678,0.1115898,111760.0,111740.0,0.16752]
[1756109612913,0.1115898,111760.0,111740.0,0.17055]
[1756109613168,0.1115898,111760.0,111750.0,0.00515]
[1756109613388,0.08658539,111760.0,111750.0,0.00515]
[1756109613592,0.11159159,111760.0,111750.0,0.00515]
[1756109614019,0.11059116,111760.0,111750.0,0.00515]
[1756109614258,0.11159116,111760.0,111750.0,0.00515]
[1756109614444,0.11159043,111760.0,111750.0,0.00515]
[1756109614678,0.11159043,111760.0,111740.0,0.16748]
[1756109614884,0.11159043,111760.0,111740.0,0.17051]
[1756109615210,0.11159043,111760.0,111740.0,0.00303]
[1756109615438,0.11159043,111760.0,111730.0,0.23931]
[1756109615653,0.11059043,111760.0,111740.0,0.00303]
[1756109615858,0.11159043,111760.0,111740.0,0.00303]
[1756109616262,0.11159043,111760.0,111750.0,0.00212]
[1756109616462,0.11159043,111760.0,111750.0,0.00515]
[1756109616681,0.02600504,111760.0,111750.0,0.00515]
[1756109617099,0.02500504,111760.0,111750.0,0.00515]
[1756109617528,0.02800504,111760.0,111750.0,0.00515]
[1756109617728,0.02700504,111760.0,111750.0,0.00515]
[1756109618261,0.02500504,111760.0,111750.0,0.00515]
[1756109618680,0.03000504,111760.0,111750.0,0.00515]
[1756109619548,0.03000504,111760.0,111750.0,0.17255]
[1756109619966,0.02166962,111760.0,111750.0,0.17255]
[1756109620175,0.005,111760.0,111750.0,0.17255]
[1756109620393,0.005,111760.0,111750.0,0.25943475]
[1756109620616,0.0001442,111770.0,111750.0,0.27688377]
[1756109620809,0.0001442,111770.0,111760.0,0.15123861]
[1756109621027,0.0001442,111770.0,111760.0,0.15762677]
[1756109622113,0.0001442,111770.0,111760.0,0.15750861]
[1756109622333,0.0001442,111770.0,111760.0,0.32486861]
[1756109623654,0.0001442,111770.0,111760.0,0.34430261]
[1756109624078,0.0011442,111770.0,111760.0,0.094504]
[1756109624297,0.00394012,111770.0,111760.0,0.24239]
[1756109626423,0.0011442,111770.0,111760.0,0.24239]
[1756109629107,0.01943344,111780.0,111770.0,0.0013558]
[1756109629316,0.01663777,111780.0,111770.0,0.0013558]
[1756109630356,0.01663777,111780.0,111770.0,0.0009296]
[1756109630560,0.01763777,111780.0,111770.0,0.0009296]
[1756109631795,0.44452252,111780.0,111770.0,0.0009296]
[1756109633598,0.44352252,111780.0,111770.0,0.0009796]
[1756109633800,0.44852252,111780.0,111770.0,0.0009796]
[1756109634883,0.44852252,111780.0,111770.0,0.0041596]
[1756109635081,0.44852252,111780.0,111770.0,0.0009796]
[1756109635987,0.36163777,111780.0,111770.0,0.0062496]
[1756109636570,0.02163777,111780.0,111770.0,0.0062496]
[1756109636771,0.02443344,111780.0,111770.0,0.0062496]
[1756109637471,0.10631819,111780.0,111770.0,0.0009796]
[1756109637692,0.10831819,111780.0,111770.0,0.0009796]
[1756109637894,0.11031819,111780.0,111770.0,0.0009796]
[1756109638095,0.10831819,111780.0,111770.0,0.0009796]
[1756109638467,0.11031819,111780.0,111770.0,0.0009796]
[1756109638676,0.10831819,111780.0,111770.0,0.0009796]
[1756109639042,0.10631819,111780.0,111770.0,0.0009796]
[1756109639238,0.10831819,111780.0,111770.0,0.0009796]
[1756109640168,0.11131819,111780.0,111770.0,0.0009796]
[1756109642025,0.45131819,111780.0,111770.0,0.0009796]
[1756109642270,0.44852252,111780.0,111770.0,0.0009796]
[1756109642490,0.7945254,111780.0,111770.0,0.0009796]
[1756109642914,0.44852252,111780.0,111770.0,0.0009796]
[1756109643125,0.65681557,111780.0,111770.0,0.0009796]
[1756109643400,0.63681557,111780.0,111770.0,0.0009796]
[1756109644736,0.46977557,111780.0,111770.0,0.0009796]
[1756109644941,0.63681557,111780.0,111770.0,0.0009796]
[1756109646419,0.48568797,111780.0,111770.0,0.0030696]
[1756109646632,0.48568797,111780.0,111770.0,0.0062496]
[1756109647055,0.44443492,111780.0,111770.0,0.0062496]
[1756109647269,0.3609124,111780.0,111770.0,0.0062496]
[1756109647484,0.0209124,111780.0,111770.0,0.0062496]
[1756109648145,0.0189124,111780.0,111770.0,0.0062496]
[1756109648592,0.0179124,111780.0,111770.0,0.0062496]
[1756109649031,0.0002,111790.0,111770.0,0.0062496]
[1756109649248,0.01667036,111790.0,111780.0,0.00318]
[1756109649468,0.03335568,111790.0,111780.0,0.00513]
[1756109649746,0.01688532,111790.0,111780.0,0.00513]
[1756109650796,0.01688532,111790.0,111780.0,0.00663]
[1756109651245,0.01888532,111790.0,111780.0,0.00663]
[1756109651461,0.03733568,111790.0,111780.0,0.00663]
[1756109651909,0.03533568,111790.0,111780.0,0.00663]
[1756109652265,0.03733568,111790.0,111780.0,0.00663]
[1756109656999,0.03733568,111790.0,111780.0,0.00668]
[1756109657418,0.0206501,111790.0,111780.0,0.00668]
[1756109663147,0.0191501,111790.0,111780.0,0.00518]
[1756109664237,0.0171501,111790.0,111780.0,5e-05]
[1756109664666,0.0184501,111790.0,111780.0,5e-05]
[1756109665129,0.0164501,111790.0,111780.0,5e-05]
[1756109665376,0.0184501,111790.0,111780.0,5e-05]
[1756109665595,0.002,111790.0,111780.0,5e-05]
[1756109665810,0.002,111790.0,111780.0,0.00522]
[1756109666024,0.002,111790.0,111780.0,5e-05]
[1756109666477,0.002,111790.0,111780.0,0.00327]
[1756109666689,0.002,111790.0,111780.0,5e-05]
[1756109667535,0.03060708,111790.0,111780.0,5e-05]
[1756109667773,0.03160708,111790.0,111780.0,5e-05]
[1756109672101,0.03440249,111790.0,111780.0,5e-05]
[1756109673146,0.03440249,111790.0,111780.0,0.00522]
[1756109673352,0.03440249,111790.0,111780.0,5e-05]
[1756109675270,0.03440249,111790.0,111780.0,0.00522]
[1756109677139,0.03440249,111790.0,111780.0,0.1717]
[1756109677140,0.003,111790.0,111780.0,0.1717]
[1756109677575,0.003,111790.0,111780.0,0.25970191]
[1756109677947,0.003,111790.0,111780.0,0.25858475]
[1756109678359,0.002,111790.0,111780.0,0.25858475]
[1756109678788,0.002,111790.0,111780.0,0.25958475]
[1756109679437,0.47754215,111800.0,111780.0,0.25958475]
[1756109679656,0.47754215,111800.0,111790.0,0.00322]
[1756109679839,0.47754215,111800.0,111790.0,0.00521]
[1756109680096,0.47754215,111800.0,111790.0,0.00322]
[1756109680329,0.47754215,111800.0,111780.0,0.00105]
[1756109680536,0.00279541,111790.0,111780.0,0.17071]
[1756109680739,0.00279541,111790.0,111780.0,0.1717]
[1756109681432,0.00279541,111790.0,111780.0,5e-05]
[1756109682252,0.00167856,111790.0,111780.0,5e-05]
[1756109682451,0.00167856,111790.0,111780.0,0.00105]
[1756109683251,0.00167856,111790.0,111780.0,0.00626]
[1756109683536,0.03144034,111800.0,111780.0,0.00626]
[1756109683735,0.002,111790.0,111780.0,0.00626]
[1756109684007,0.002,111790.0,111780.0,0.00526]
[1756109684269,0.003,111790.0,111780.0,0.00526]
[1756109684438,0.11832509,111800.0,111780.0,0.00526]
[1756109684971,0.12037312,111800.0,111780.0,0.00526]
[1756109685279,0.11837312,111800.0,111780.0,0.00526]
[1756109685489,0.001,111790.0,111780.0,0.00526]
[1756109685910,0.11837312,111800.0,111780.0,0.00526]
[1756109686249,0.11837312,111800.0,111790.0,0.00322]
[1756109686635,0.11837312,111800.0,111780.0,5e-05]
[1756109686854,0.11837312,111800.0,111780.0,0.00327]
[1756109687581,0.03148837,111800.0,111780.0,0.00327]
[1756109687782,0.03348837,111800.0,111790.0,0.00199]
[1756109687988,0.03148837,111800.0,111790.0,0.00521]
[1756109688425,0.03248837,111800.0,111790.0,0.00521]
[1756109688634,0.03148837,111800.0,111790.0,0.00521]
[1756109689051,0.13248837,111800.0,111790.0,0.00521]
[1756109689257,0.13348837,111800.0,111790.0,0.00521]
[1756109689637,0.13248837,111800.0,111790.0,0.00521]
[1756109689876,0.13348837,111800.0,111790.0,0.00322]
[1756109690283,0.13348837,111800.0,111790.0,0.00521]
[1756109690701,0.13348837,111800.0,111790.0,0.00322]
[1756109691294,0.13348837,111800.0,111790.0,0.00521]
[1756109692519,0.58188837,111800.0,111790.0,0.00521]
[1756109692701,0.58020981,111800.0,111790.0,0.00322]
[1756109693774,0.58020981,111800.0,111790.0,0.00521]
[1756109695037,0.58020981,111800.0,111790.0,0.032099]
[1756109695472,0.58020981,111800.0,111790.0,0.198259]
[1756109695712,0.58020981,111800.0,111790.0,0.21831355]
[1756109695918,0.58020981,111800.0,111790.0,0.00521]
[1756109697920,0.58020981,111800.0,111790.0,0.00526]
[1756109700250,0.58020981,111800.0,111790.0,0.026889]
[1756109700466,0.58020981,111800.0,111790.0,0.028879]
[1756109702228,0.55044803,111800.0,111790.0,0.03433533]
[1756109702431,0.55044803,111800.0,111790.0,0.05178753]
[1756109703315,0.55044803,111800.0,111790.0,0.032099]
[1756109703522,0.55044803,111800.0,111790.0,0.198099]
[1756109707820,0.55249803,111800.0,111790.0,0.194879]
[1756109708222,0.55249803,111800.0,111790.0,0.198099]
[1756109708840,0.55249803,111800.0,111790.0,0.194879]
[1756109709069,0.55249803,111800.0,111790.0,0.2146889]
[1756109709495,0.55570803,111800.0,111790.0,0.2126189]
[1756109711059,0.55570803,111800.0,111790.0,0.2125789]
[1756109711272,0.55570803,111800.0,111790.0,0.0466989]
[1756109711483,0.55570803,111800.0,111790.0,0.192769]
[1756109713498,0.55249803,111800.0,111790.0,0.192819]
[1756109713933,0.55249803,111800.0,111790.0,0.194929]
[1756109714158,0.55249803,111800.0,111790.0,0.198159]
[1756109714387,0.55249803,111800.0,111790.0,0.192779]
[1756109714623,0.55249803,111800.0,111790.0,0.2144899]
[1756109715993,0.55249803,111800.0,111790.0,0.2123799]
[1756109716629,0.55249803,111800.0,111790.0,0.2144899]
[1756109718043,0.55044803,111800.0,111790.0,0.2144899]
[1756109718319,0.55249803,111800.0,111790.0,0.2144899]
[1756109718549,0.31807068,111800.0,111790.0,0.2144899]
[1756109718957,0.31807068,111800.0,111790.0,0.2177199]
[1756109719157,0.41217068,111800.0,111790.0,0.2177199]
[1756109719583,0.41217068,111800.0,111790.0,0.2144899]
[1756109719845,0.41217068,111800.0,111790.0,0.2177199]
[1756109720060,0.41217068,111800.0,111790.0,0.2144899]
[1756109720498,0.41217068,111800.0,111790.0,0.2177199]
[1756109720735,0.00205,111800.0,111790.0,0.2144899]
[1756109721162,0.001156,111800.0,111790.0,0.2144899]
[1756109721381,0.001156,111800.0,111790.0,0.2177199]
[1756109721601,0.001156,111800.0,111790.0,0.2187199]
[1756109722030,0.00205,111800.0,111790.0,0.2133799]
[1756109722245,0.00205,111800.0,111790.0,0.2842899]
[1756109722447,0.00205,111800.0,111790.0,0.2875199]
[1756109722681,0.03470558,111810.0,111790.0,0.2875199]
[1756109722901,0.03149558,111810.0,111790.0,0.2875199]
[1756109723114,0.03470558,111810.0,111790.0,0.2875199]
[1756109723323,0.00205,111800.0,111790.0,0.2875199]
[1756109723781,0.03149558,111810.0,111790.0,0.2875199]
[1756109724027,0.02981702,111810.0,111800.0,0.00323]
[1756109724238,0.02981702,111810.0,111800.0,0.00534]
[1756109724486,0.00187856,111820.0,111800.0,0.032225]
[1756109724716,0.001,111810.0,111800.0,0.06956507]
[1756109724932,0.001,111810.0,111800.0,0.2374812]
[1756109725146,0.001,111810.0,111800.0,0.23524507]
[1756109726187,0.00187856,111820.0,111800.0,0.23524507]
[1756109726426,0.00187856,111820.0,111800.0,0.23206507]
[1756109726640,0.00187856,111820.0,111810.0,0.00323]
[1756109726856,0.0292627,111820.0,111810.0,0.00534]
[1756109727067,0.0002,111820.0,111810.0,0.00757593]
[1756109728343,0.0002,111820.0,111810.0,0.09613595]
[1756109728344,0.0012,111820.0,111810.0,0.09613595]
[1756109728554,0.0002,111820.0,111810.0,0.1830056]
[1756109728772,0.0002,111820.0,111810.0,0.1790944]
[1756109728997,0.0012,111820.0,111810.0,0.18133033]
[1756109729241,0.0002,111820.0,111810.0,0.1790944]
[1756109729469,0.0002,111820.0,111810.0,0.3477344]
[1756109729729,0.0002,111820.0,111810.0,0.3486944]
[1756109729947,0.0002,111820.0,111810.0,0.09622475]
[1756109730213,0.00225,111820.0,111810.0,0.17494]
[1756109730453,0.00546,111820.0,111810.0,0.1696]
[1756109730670,0.00225,111820.0,111810.0,0.17494]
[1756109730901,0.0002,111820.0,111810.0,0.17394]
[1756109731214,0.0002,111820.0,111810.0,0.19776151]
[1756109731432,0.00225,111820.0,111810.0,0.19476151]
[1756109731887,0.00225,111820.0,111810.0,0.19676151]
[1756109732164,0.00225,111820.0,111810.0,0.18942151]
[1756109732474,0.0002,111820.0,111810.0,0.19576151]
[1756109734711,0.0002,111820.0,111810.0,0.28264626]
[1756109736746,0.0002,111820.0,111810.0,0.28252626]
[1756109737913,0.0002,111820.0,111810.0,0.28152626]
[1756109738955,0.0002,111820.0,111810.0,0.28252626]
[1756109739030,0.0002,111820.0,111810.0,0.30940526]
[1756109742399,0.0002,111820.0,111810.0,1.17793278]
[1756109742625,0.0002,111820.0,111810.0,0.32685428]
[1756109742857,0.0002,111820.0,111810.0,1.17793278]
[1756109743492,0.0002,111820.0,111810.0,1.17893278]
[1756109743936,0.0002,111820.0,111810.0,1.27594834]
[1756109744175,0.0002,111820.0,111810.0,1.27494834]
[1756109744404,0.0002,111820.0,111810.0,1.45582321]
[1756109744616,0.0002,111820.0,111810.0,1.45382321]
[1756109744826,0.0002,111820.0,111810.0,1.65387321]
[1756109745297,0.0002,111820.0,111810.0,1.99387321]
[1756109745515,0.0002,111820.0,111810.0,1.99687321]
[1756109745707,0.0002,111820.0,111810.0,1.99587321]
[1756109746131,0.0002,111820.0,111810.0,1.14279471]
[1756109746337,0.0002,111820.0,111810.0,1.99387321]
[1756109746593,0.0002,111820.0,111810.0,1.99687321]
[1756109747784,0.0002,111820.0,111810.0,2.00187321]
[1756109748165,0.0002,111820.0,111810.0,1.82299834]
[1756109749163,0.0002,111820.0,111810.0,0.80643984]
[1756109749370,0.0002,111820.0,111810.0,0.67370428]
[1756109750016,0.0002,111820.0,111810.0,1.62279834]
[1756109751136,0.0002,111820.0,111810.0,1.80167321]
[1756109753277,0.0002,111820.0,111810.0,0.95059471]
[1756109753509,0.0002,111820.0,111810.0,1.80167321]
[1756109755328,0.0002,111820.0,111810.0,1.80825321]
[1756109756910,0.0002,111820.0,111810.0,1.71023765]
[1756109757326,0.0002,111820.0,111810.0,0.85915915]
[1756109757530,0.0002,111820.0,111810.0,1.71023765]
[1756109757739,0.0002,111820.0,111810.0,1.05915915]
[1756109757954,0.0002,111820.0,111810.0,1.91023765]
[1756109758380,0.0002,111820.0,111810.0,2.00365765]
[1756109758891,0.0002,111820.0,111810.0,2.00131765]
[1756109760632,0.0002,111820.0,111810.0,2.26421765]
[1756109760837,0.0002,111820.0,111810.0,2.25763765]
[1756109761041,0.0002,111820.0,111810.0,2.35763765]
[1756109761481,0.0002,111820.0,111810.0,2.34963765]
[1756109761960,0.0002,111820.0,111810.0,2.35963765]
[1756109762164,0.00329,111860.0,111840.0,0.2]
[1756109762165,0.00134783,111860.0,111840.0,0.2]
[1756109762376,0.70955792,111910.0,111850.0,0.32295988]
[1756109762588,0.70955792,111910.0,111850.0,0.15564475]
[1756109762589,8.595e-05,111860.0,111850.0,0.15564475]
[1756109762797,0.00214595,111860.0,111850.0,0.34532338]
[1756109763017,0.00214595,111860.0,111850.0,0.32068475]
[1756109763232,0.00214595,111860.0,111850.0,0.24105866]
[1756109763439,0.00382451,111860.0,111850.0,0.31921391]
[1756109763642,0.00382451,111860.0,111850.0,0.15417391]
[1756109763850,0.00382451,111860.0,111850.0,0.31921391]
[1756109764062,0.34,111880.0,111850.0,0.31921391]
[1756109764286,0.00061,111860.0,111850.0,0.31921391]
[1756109765142,0.00061,111860.0,111850.0,0.40609866]
[1756109766049,0.00461,111860.0,111850.0,0.40609866]
[1756109766271,0.004,111860.0,111850.0,0.41121866]
[1756109766491,0.004,111860.0,111850.0,1.27974618]
[1756109766937,0.004,111860.0,111850.0,1.37776174]
[1756109767397,0.004,111860.0,111850.0,0.52668324]
[1756109767596,0.00048022,111880.0,111860.0,0.21744902]
[1756109767848,0.00048022,111880.0,111870.0,0.25635421]
[1756109768083,0.00048022,111880.0,111870.0,0.25188475]
[1756109768331,0.00048022,111880.0,111870.0,0.27874875]
[1756109768547,0.00074022,111880.0,111870.0,0.27874875]
[1756109769230,0.00412022,111880.0,111870.0,0.11241515]
[1756109769456,0.00112022,111880.0,111870.0,0.29200324]
[1756109769981,0.00074022,111880.0,111870.0,0.29200324]
[1756109770243,0.00112022,111880.0,111870.0,0.29200324]
[1756109770479,0.00074022,111880.0,111870.0,0.29200324]
[1756109770983,0.00374022,111880.0,111870.0,0.29200324]
[1756109771906,0.00412022,111880.0,111870.0,0.29200324]
[1756109772132,0.00374022,111880.0,111870.0,0.29200324]
[1756109773755,0.00348022,111880.0,111870.0,0.29691324]
[1756109774940,0.00374022,111880.0,111870.0,0.29691324]
[1756109776220,0.00348022,111880.0,111870.0,0.29691324]
[1756109776424,0.00347022,111880.0,111870.0,0.29200324]
[1756109776636,0.00321022,111880.0,111870.0,0.29691324]
[1756109776850,0.00347022,111880.0,111870.0,0.29200324]
[1756109777081,0.00347022,111880.0,111870.0,0.29691324]
[1756109777364,0.00321022,111880.0,111870.0,0.29691324]
[1756109777572,0.00347022,111880.0,111870.0,0.29691324]
[1756109777789,0.00321022,111880.0,111870.0,0.29691324]
[1756109778001,0.00347022,111880.0,111870.0,0.29691324]
[1756109778855,0.00347022,111880.0,111870.0,0.29200324]
[1756109779286,0.00347022,111880.0,111870.0,0.29493324]
[1756109779494,0.00347022,111880.0,111870.0,0.29691324]
[1756109779703,0.00321022,111880.0,111870.0,0.29691324]
[1756109780350,0.00382022,111880.0,111870.0,0.29691324]
[1756109780568,0.00382022,111880.0,111870.0,0.29200324]
[1756109780783,0.00382022,111880.0,111870.0,0.12700324]
[1756109781001,0.00382022,111880.0,111870.0,0.29188324]
[1756109781229,0.00382022,111880.0,111870.0,0.16488]
[1756109781447,0.00082022,111880.0,111870.0,0.16488]
[1756109781599,0.00182022,111880.0,111870.0,0.16488]
[1756109781825,0.00220022,111880.0,111850.0,0.12730491]
[1756109782033,0.00038,111870.0,111850.0,0.12730491]
[1756109782238,0.00061,111860.0,111850.0,0.06876]
[1756109782616,0.00099,111860.0,111850.0,0.23364]
[1756109783046,0.00061,111860.0,111850.0,0.23364]
[1756109783261,0.00099,111860.0,111850.0,0.23364]
[1756109783475,0.00099,111860.0,111850.0,0.257004]
[1756109783690,0.00061,111860.0,111850.0,0.257004]
[1756109784543,0.002,111860.0,111850.0,0.261914]
[1756109786674,0.00261,111860.0,111850.0,0.261914]
[1756109787100,0.00261,111860.0,111850.0,0.257004]
[1756109787345,0.00061,111860.0,111850.0,0.257004]
[1756109787589,0.00061,111860.0,111850.0,0.092124]
[1756109787801,0.00199,111860.0,111850.0,0.23364]
[1756109788014,0.028865,111860.0,111850.0,0.23364]
[1756109788453,0.028485,111860.0,111850.0,0.23364]
[1756109788665,0.027485,111860.0,111850.0,0.23369]
[1756109789101,0.029865,111860.0,111850.0,0.06881]
[1756109789310,0.07013004,111860.0,111850.0,0.240531]
[1756109789528,0.06975004,111860.0,111850.0,0.240531]
[1756109789746,0.029865,111860.0,111850.0,0.240531]
[1756109790188,0.029485,111860.0,111850.0,0.240531]
[1756109793233,0.029485,111860.0,111850.0,0.243461]
[1756109793467,0.029485,111860.0,111850.0,0.240531]
[1756109793693,0.06991113,111860.0,111850.0,0.240531]
[1756109793923,0.029485,111860.0,111850.0,0.240531]
[1756109795321,0.029485,111860.0,111850.0,0.245441]
[1756109795555,0.028875,111860.0,111850.0,0.245441]
[1756109796018,0.002,111860.0,111850.0,0.245441]
[1756109796933,0.002,111860.0,111850.0,0.33232575]
[1756109797820,0.04378521,111860.0,111850.0,0.240531]
[1756109798236,0.00261,111860.0,111850.0,0.240531]
[1756109798440,0.00061,111860.0,111850.0,0.240531]
[1756109798663,0.00161,111860.0,111850.0,0.075691]
[1756109798879,0.00161,111860.0,111850.0,0.240491]
[1756109799122,0.00061,111860.0,111850.0,0.242471]
[1756109799356,0.002,111860.0,111850.0,0.245401]
[1756109799827,0.026872,111870.0,111850.0,0.245401]
[1756109800046,0.002,111860.0,111850.0,0.245401]
[1756109800266,0.00261,111860.0,111850.0,0.245401]
[1756109800516,0.002,111860.0,111850.0,0.245401]
[1756109801554,0.026872,111870.0,111850.0,0.245401]
[1756109801765,0.029872,111870.0,111850.0,0.245401]
[1756109802389,0.026872,111870.0,111850.0,0.245401]
[1756109802630,0.002,111860.0,111850.0,0.245401]
[1756109802832,0.026872,111870.0,111850.0,0.245401]
[1756109803262,0.029872,111870.0,111850.0,0.245401]
[1756109804093,0.029872,111870.0,111850.0,0.080601]
[1756109804307,0.00061,111860.0,111850.0,0.080601]
[1756109804512,0.00061,111860.0,111850.0,0.245361]
[1756109804717,0.026875,111860.0,111850.0,0.245361]
[1756109805157,0.028875,111860.0,111850.0,0.245361]
[1756109805805,0.002,111860.0,111850.0,0.245361]
[1756109805987,0.04325979,111860.0,111850.0,0.33224575]
[1756109806241,0.00013284,111880.0,111850.0,0.33224575]
[1756109806461,0.02700484,111880.0,111850.0,0.33224575]
[1756109806687,0.02700484,111880.0,111860.0,0.00323]
[1756109806870,0.02700484,111880.0,111870.0,0.16687]
[1756109807112,0.02761484,111880.0,111870.0,0.18711]
[1756109807326,0.02761484,111880.0,111870.0,0.185]
[1756109807567,0.02761484,111880.0,111870.0,0.18711]
[1756109808726,0.02700484,111880.0,111870.0,0.18711]
[1756109808943,0.02761484,111880.0,111870.0,0.18711]
[1756109809352,0.02700484,111880.0,111870.0,0.18711]
[1756109809605,0.02900484,111880.0,111870.0,0.18711]
[1756109809823,0.02900484,111880.0,111870.0,0.19711]
[1756109810253,0.06947206,111880.0,111870.0,0.19711]
[1756109810712,0.02900484,111880.0,111870.0,0.19711]
[1756109810928,0.00213284,111880.0,111870.0,0.19711]
[1756109811138,0.00013284,111880.0,111870.0,0.03235]
[1756109811360,0.00013284,111880.0,111870.0,0.18006]
[1756109811571,0.00113284,111880.0,111870.0,0.18006]
[1756109815240,0.00113284,111880.0,111870.0,0.01534]
[1756109815449,0.00113284,111880.0,111870.0,0.18002]
[1756109817182,0.00113284,111880.0,111870.0,0.26690475]
[1756109817403,0.00113284,111880.0,111870.0,0.29359523]
[1756109818253,0.00013284,111880.0,111870.0,0.29459523]
[1756109818679,0.00013284,111880.0,111870.0,0.29559523]
[1756109819121,0.00013284,111880.0,111870.0,0.13091523]
[1756109819346,0.00013284,111880.0,111870.0,0.26886475]
[1756109819803,0.00013284,111880.0,111870.0,0.10422475]
[1756109820022,0.00013284,111880.0,111870.0,0.26882475]
[1756109820260,0.00013284,111880.0,111870.0,0.10422475]
[1756109820479,0.00013284,111880.0,111870.0,0.01734]
[1756109820687,0.00074284,111880.0,111870.0,0.18194]
[1756109820900,0.00074284,111880.0,111870.0,0.030194]
[1756109821106,0.00074284,111880.0,111870.0,0.1756]
[1756109821335,0.00074284,111880.0,111870.0,0.1746]
[1756109821828,0.00074284,111880.0,111870.0,0.17783]
[1756109822087,0.00074284,111880.0,111870.0,0.24866]
[1756109822832,0.00013284,111880.0,111870.0,0.24866]
[1756109823047,0.00013284,111880.0,111870.0,0.273526]
[1756109824344,0.04074905,111880.0,111870.0,0.273526]
[1756109825210,0.39048206,111910.0,111870.0,0.273526]
[1756109825455,0.11375375,111900.0,111870.0,0.273526]
[1756109825680,0.11413375,111900.0,111870.0,0.273526]
[1756109826117,0.11375375,111900.0,111870.0,0.273526]
[1756109826984,0.11575375,111900.0,111880.0,0.00323]
[1756109827206,0.34061,111890.0,111870.0,0.106816]
[1756109827347,0.34061,111890.0,111880.0,0.16986]